bitfinex/quotes_ETHUSD_20220109
["timestamp","ask_amount","ask_price","bid_price","bid_amount"]
[1641744003101,14.7,3100.0,3099.7,3.2]
[1641744003302,0.80707,3099.9,3099.7,3.2]
[1641744008597,0.80707,3099.9,3099.8,0.00113684]
[1641744009399,1.76604968,3099.9,3099.8,0.00113684]
[1641744013143,0.95897968,3099.9,3099.8,0.00113684]
[1641744013445,0.80695,3100.1,3099.8,5.95113684]
[1641744013645,0.80245,3100.1,3099.9,1.11811476]
[1641744013845,0.80245,3100.1,3099.8,0.00113684]
[1641744014044,2.41654,3100.1,3099.8,0.00113684]
[1641744014243,1.61418,3100.0,3099.8,0.00113684]
[1641744014847,1.61418,3100.0,3099.9,1.09831033]
[1641744015246,1.61418,3100.0,3099.8,0.00113684]
[1641744015694,2.4212745,3100.0,3099.8,0.00113684]
[1641744016099,4.65708,3099.9,3099.8,0.00113684]
[1641744016294,0.80708,3099.9,3099.8,1.14389851]
[1641744020153,0.80696,3100.2,3099.8,1.14389851]
[1641744020450,0.464,3100.7,3100.1,12.0262718]
[1641744020649,0.464,3100.7,3100.1,1.2262718]
[1641744020848,0.00113685,3100.2,3100.1,1.2262718]
[1641744021649,0.00113685,3100.2,3100.1,10.7762718]
[1641744022349,0.00113685,3100.2,3100.1,29.6862718]
[1641744022551,0.00113685,3100.2,3100.1,29.9862718]
[1641744022756,0.00113685,3100.2,3100.1,30.9862718]
[1641744022957,1.93732746,3101.7,3100.2,14.7]
[1641744022958,2.23552294,3101.7,3100.2,14.7]
[1641744023197,2.23552294,3102.2,3102.1,1.30582668]
[1641744023394,14.35646,3102.2,3102.1,1.30582668]
[1641744023596,11.30646,3102.2,3102.1,1.00579768]
[1641744023793,0.80646,3102.2,3102.1,1.00579768]
[1641744024599,0.6081468,3101.8,3101.5,1.13925288]
[1641744024895,0.6081468,3101.8,3101.6,1.41330352]
[1641744025403,0.6081468,3101.8,3101.7,15.17628986]
[1641744025596,4.68e-05,3101.8,3101.7,15.89958986]
[1641744025800,25.0,3102.5,3101.8,11.55]
[1641744026098,0.01023162,3102.0,3101.9,3.52628986]
[1641744026295,0.01023162,3102.0,3101.9,1.58882164]
[1641744026502,0.01023162,3102.0,3101.9,33.11609]
[1641744026698,0.80609,3103.6,3102.1,14.7]
[1641744026964,8.99461818,3104.3,3102.5,0.01244311]
[1641744026965,7.38251818,3104.3,3102.5,0.01244311]
[1641744027152,7.38251818,3104.3,3102.5,0.84174311]
[1641744027153,2.22628986,3104.2,3102.5,0.84174311]
[1641744027351,0.01023163,3103.8,3102.5,0.84174311]
[1641744027650,1.110456,3103.7,3102.6,1.46247691]
[1641744027851,1.110456,3103.7,3103.5,1.43010579]
[1641744028058,0.00909478,3103.6,3103.5,1.43010579]
[1641744028251,0.00909478,3103.6,3102.4,18.91]
[1641744028453,0.00909478,3103.6,3102.3,5.0329]
[1641744028651,1.1007928,3103.7,3102.3,5.0329]
[1641744028652,0.00852636,3103.5,3102.3,5.0329]
[1641744028851,1.02316065,3103.1,3102.3,5.0329]
[1641744029051,1.02316065,3103.1,3102.1,1.20351269]
[1641744029251,1.22055245,3103.0,3101.9,7.07471708]
[1641744029453,0.00568424,3103.0,3101.9,3.9077]
[1641744029752,0.00511582,3102.9,3101.9,0.01218138]
[1641744029951,0.00511582,3102.9,3101.8,1.09068138]
[1641744029952,14.3,3102.8,3101.8,1.09068138]
[1641744030153,1.1565745,3102.3,3101.8,1.09068138]
[1641744030355,1.1565745,3102.3,3101.6,3.7644]
[1641744030607,10.7568145,3102.1,3101.4,0.08056]
[1641744030806,9.45,3102.1,3101.7,0.00170527]
[1641744031004,9.45,3102.1,3101.5,0.00284211]
[1641744031403,0.00113685,3102.2,3100.8,0.00682108]
[1641744031606,0.00113685,3102.2,3101.1,0.01217188]
[1641744031803,1.36832167,3101.8,3101.2,1.29438544]
[1641744032005,1.36832167,3101.8,3101.3,18.91]
[1641744032205,1.36832167,3101.8,3101.3,18.91397896]
[1641744032403,1.36832167,3101.8,3101.4,0.00341054]
[1641744032603,0.00113685,3102.2,3101.4,0.00341054]
[1641744033003,0.00113685,3102.2,3101.3,0.00397896]
[1641744033206,0.00113685,3102.2,3101.3,18.91397896]
[1641744033604,1.27626919,3102.1,3101.4,0.00341054]
[1641744034205,1.27626919,3102.1,3101.3,0.00397896]
[1641744034846,2.08272919,3102.1,3101.7,1.16161385]
[1641744035046,2.08272919,3102.1,3101.3,0.00397896]
[1641744035047,1.38064977,3101.6,3101.3,0.00397896]
[1641744035247,1.38064977,3101.6,3101.2,3.2]
[1641744036247,1.38064977,3101.6,3101.4,1.40317975]
[1641744036448,2.88467685,3102.2,3101.4,1.40317975]
[1641744036449,38.88057841,3102.2,3101.4,1.40317975]
[1641744036653,38.88057841,3102.2,3101.5,0.00284211]
[1641744036849,0.46513685,3102.2,3101.5,0.00284211]
[1641744037550,1.55848778,3102.2,3101.5,0.00284211]
[1641744037851,1.10890905,3102.1,3101.5,0.00284211]
[1641744039302,1.55848778,3102.2,3101.5,0.00284211]
[1641744039504,1.09448778,3102.2,3101.5,0.00388991]
[1641744039904,1.09448778,3102.2,3101.6,0.00227369]
[1641744040309,2.3977664,3102.2,3101.6,0.00227369]
[1641744040605,1.40339614,3101.7,3101.6,0.00227369]
[1641744041006,2.5143973,3101.7,3101.6,0.00227369]
[1641744041204,1.40339614,3101.7,3101.6,0.00227369]
[1641744046408,0.80646,3102.1,3101.6,0.00227369]
[1641744046607,0.80646,3102.1,3102.0,1.1311603]
[1641744046806,0.00113685,3102.2,3102.0,1.1311603]
[1641744048008,1.22912181,3102.2,3102.0,1.1311603]
[1641744048410,0.00113685,3102.2,3102.0,1.1311603]
[1641744048607,0.00113685,3102.2,3102.1,14.5603596]
[1641744049206,0.00113685,3102.2,3102.1,2.1603596]
[1641744049452,0.00113685,3102.2,3102.1,3.30074738]
[1641744050049,0.00113685,3102.2,3102.1,3.60074738]
[1641744050249,0.00113685,3102.2,3102.1,11.7603596]
[1641744050951,0.00113685,3102.2,3102.1,30.3703596]
[1641744051149,0.00113685,3102.2,3102.1,18.91]
[1641744051751,0.00113685,3102.2,3102.0,1.1311603]
[1641744053393,1.27677086,3102.6,3102.0,4.3311603]
[1641744053594,1.61334559,3102.9,3102.0,4.3311603]
[1641744053794,0.00170527,3102.5,3102.0,4.3311603]
[1641744054195,0.00113685,3102.4,3102.1,2.10667446]
[1641744054396,0.00113685,3102.4,3102.0,4.3311603]
[1641744054597,1.13370702,3102.9,3102.1,2.09941396]
[1641744054797,1.13370702,3102.9,3102.8,1.55306294]
[1641744056965,0.80613,3103.3,3102.8,1.55306294]
[1641744057259,0.00454739,3103.0,3102.8,1.55306294]
[1641744057657,0.00397897,3102.9,3102.8,1.55306294]
[1641744062902,0.00397897,3102.9,3102.8,3.80594772]
[1641744063103,0.00397897,3102.9,3102.8,14.65306294]
[1641744063302,0.00397897,3102.9,3102.8,15.95306294]
[1641744063702,0.00397897,3102.9,3102.8,1.55306294]
[1641744064003,0.00397897,3102.9,3102.8,4.75306294]
[1641744067158,0.00397897,3102.9,3102.8,3.2]
[1641744067657,14.7,3102.8,3101.7,3.6257]
[1641744067857,1.25959442,3101.8,3101.7,3.6257]
[1641744068301,1.25959442,3101.8,3101.7,1.1109183]
[1641744068500,1.25959442,3101.8,3101.0,9.1359032]
[1641744068706,2.06612442,3101.8,3101.0,5.3259032]
[1641744068901,2.06612442,3101.8,3101.1,0.00625266]
[1641744069302,2.36612442,3101.8,3101.0,0.00682108]
[1641744069510,0.764,3101.7,3101.0,0.00682108]
[1641744069701,0.764,3101.7,3100.7,5.3259032]
[1641744069702,0.80668,3101.5,3100.8,0.00795793]
[1641744069903,1.61366,3101.2,3100.8,0.00795793]
[1641744070103,8.75158253,3100.9,3100.8,0.00795793]
[1641744070303,9.21558253,3100.9,3100.7,0.00852635]
[1641744070501,1.46558253,3100.9,3100.7,0.00852635]
[1641744071103,1.46558253,3100.9,3100.8,1.41730249]
[1641744071405,1.46558253,3100.9,3100.8,1.42526042]
[1641744071866,0.464,3100.9,3100.8,1.42526042]
[1641744072056,0.80666,3101.4,3100.8,1.42526042]
[1641744072454,0.80666,3101.4,3100.9,0.0073895]
[1641744072855,1.19256461,3101.1,3100.9,0.0073895]
[1641744073058,4.11422862,3101.8,3101.3,1.33351437]
[1641744073059,1.25772828,3101.8,3101.3,1.33351437]
[1641744073256,1.25772828,3101.8,3100.9,0.0073895]
[1641744073457,1.25772828,3101.8,3101.4,0.00454739]
[1641744073657,1.25772828,3101.8,3100.7,0.00852635]
[1641744073856,1.27051,3102.0,3100.9,3.2]
[1641744074058,1.27044,3102.4,3101.4,1.01337717]
[1641744074258,0.464,3102.4,3101.5,2.59863998]
[1641744074456,1.08925842,3102.5,3101.5,2.60261894]
[1641744074660,3.50768842,3102.6,3101.6,0.00341054]
[1641744074856,0.00113685,3102.4,3101.6,0.00341054]
[1641744075056,0.28288842,3102.6,3101.6,0.00341054]
[1641744075057,0.00170527,3102.5,3101.9,0.80618]
[1641744075357,1.61342369,3102.8,3102.4,8.72038398]
[1641744075604,1.61342369,3102.8,3102.4,1.12038398]
[1641744075803,0.00170527,3102.5,3102.4,1.12038398]
[1641744076001,0.00170527,3102.5,3102.4,6.27165023]
[1641744076202,0.00170527,3102.5,3102.4,1.27165023]
[1641744077606,0.00170527,3102.5,3102.4,3.45997911]
[1641744078106,0.00170527,3102.5,3102.4,14.90997911]
[1641744078506,0.00170527,3102.5,3102.4,16.50997911]
[1641744078706,0.00170527,3102.5,3102.4,35.41997911]
[1641744078906,0.00170527,3102.5,3102.4,33.81997911]
[1641744079108,0.00170527,3102.5,3102.4,34.11997911]
[1641744079358,0.00170527,3102.5,3102.4,3.75997911]
[1641744079554,0.00170527,3102.5,3102.4,3.45997911]
[1641744080154,0.00170527,3102.5,3102.4,1.27165023]
[1641744083804,0.00170527,3102.5,3102.4,1.47165023]
[1641744085504,0.00170527,3102.5,3102.4,1.47263055]
[1641744085903,0.00170527,3102.5,3102.4,1.47367805]
[1641744086505,0.00170527,3102.5,3102.4,1.47269773]
[1641744087159,0.00170527,3102.5,3102.4,1.47165023]
[1641744091201,1.01024895,3102.5,3102.4,1.47165023]
[1641744093214,1.01024895,3102.5,3102.4,0.2]
[1641744093808,6.51024895,3102.5,3102.4,0.2]
[1641744094010,14.7,3102.4,3102.0,0.00113685]
[1641744094459,1.61315,3102.0,3101.6,0.00341054]
[1641744094659,2.51172185,3101.9,3101.6,0.00341054]
[1641744094859,2.51172185,3101.9,3101.4,0.00454739]
[1641744095060,2.51172185,3101.9,3101.2,0.00568423]
[1641744095357,2.51172185,3101.9,3101.0,0.00682108]
[1641744095659,4.12488185,3101.9,3101.0,0.00682108]
[1641744096462,0.80659,3101.6,3101.0,0.00682108]
[1641744096659,0.80677,3101.2,3100.6,0.00909477]
[1641744096858,0.80677,3101.2,3100.5,0.0096632]
[1641744096859,0.8815,3101.2,3100.5,0.0096632]
[1641744097258,1.54926974,3101.1,3100.5,0.0096632]
[1641744097460,0.80679,3100.9,3100.5,0.0096632]
[1641744097662,0.80679,3100.9,3100.4,0.01023162]
[1641744097859,0.80683,3100.8,3100.4,0.01023162]
[1641744098504,0.80691,3100.6,3100.4,0.01023162]
[1641744098708,15.99793754,3100.5,3100.4,0.01023162]
[1641744099004,15.99793754,3100.5,3099.4,1.20532816]
[1641744099005,12.3,3100.4,3099.4,1.20532816]
[1641744099207,12.3,3100.4,3100.1,6.08]
[1641744099704,2.42132,3100.3,3100.1,6.08]
[1641744100005,1.61417,3100.3,3100.1,6.08]
[1641744100406,1.61417,3100.3,3099.5,0.00511581]
[1641744100407,3.05627,3100.3,3099.5,0.00511581]
[1641744100606,47.00501213,3100.2,3099.5,0.00511581]
[1641744100807,47.00501213,3100.2,3099.3,6.08]
[1641744100808,1.6143173,3099.9,3099.4,0.00568424]
[1641744101009,1.56441591,3099.5,3099.4,0.00568424]
[1641744102657,5.71441591,3099.5,3099.4,0.00568424]
[1641744102863,1.56441591,3099.5,3099.4,0.00568424]
[1641744103256,1.56441591,3099.5,3098.5,3.605]
[1641744103257,0.80731,3099.2,3098.5,3.605]
[1641744103458,0.80731,3099.2,3098.5,6.08]
[1641744103459,0.80744,3098.8,3098.5,6.08]
[1641744103659,0.80744,3098.8,3098.6,0.00454738]
[1641744103856,1.7075,3098.9,3098.6,0.00454738]
[1641744103857,0.7545,3098.9,3098.6,0.00454738]
[1641744104257,7.1474722,3098.7,3098.6,0.00454738]
[1641744104458,1.3974722,3098.7,3098.6,0.00454738]
[1641744104658,2.2049122,3098.7,3098.6,0.00454738]
[1641744105260,14.7,3098.6,3098.2,0.03]
[1641744105461,14.7,3098.6,3097.4,3.7005]
[1641744105462,4.80590107,3098.5,3097.4,3.7005]
[1641744105711,3.19080107,3098.5,3098.3,0.00170527]
[1641744105910,0.464,3098.5,3098.3,0.00170527]
[1641744106111,16.31524,3098.4,3097.1,0.90703343]
[1641744106309,16.31524,3098.4,3098.3,3.3742379]
[1641744106310,1.61524,3098.4,3098.3,3.3742379]
[1641744106510,6.43358295,3098.4,3098.3,3.3742379]
[1641744107110,6.43358295,3098.4,3098.3,3.32009857]
[1641744107311,6.43358295,3098.4,3097.4,0.00511582]
[1641744107312,14.7,3098.3,3097.4,0.00511582]
[1641744107510,1.61544,3097.8,3097.4,0.00511582]
[1641744107713,1.61544,3097.8,3097.1,0.00682109]
[1641744107911,1.61544,3097.8,3096.7,0.00909478]
[1641744108114,1.61544,3097.8,3096.9,1.12186232]
[1641744108310,1.61544,3097.8,3096.7,0.00909478]
[1641744108311,0.80772,3097.5,3096.7,0.00909478]
[1641744108511,0.80772,3097.5,3096.5,1.24969504]
[1641744108711,0.00397896,3097.4,3096.7,0.00909478]
[1641744109110,1.27167,3098.0,3096.7,0.00909478]
[1641744109111,0.00341054,3097.3,3096.7,0.00909478]
[1641744109358,0.00341054,3097.3,3096.8,1.26866054]
[1641744109551,0.00284212,3097.2,3096.8,1.26866054]
[1641744109750,0.00284212,3097.2,3097.0,1.22795041]
[1641744109952,0.00227369,3097.1,3097.0,1.22795041]
[1641744110151,0.00227369,3097.1,3097.0,3.50732467]
[1641744110352,0.464,3098.4,3097.1,14.7]
[1641744110553,59.96187503,3098.6,3097.2,2.3513545]
[1641744110554,20.0,3098.6,3097.2,2.3513545]
[1641744110755,0.464,3098.8,3097.2,3.4586945]
[1641744110756,0.00454739,3097.9,3097.2,3.4586945]
[1641744110953,0.00454739,3097.9,3097.3,0.3]
[1641744111153,1.93902526,3099.0,3097.4,2.3513545]
[1641744111154,0.00397897,3097.8,3097.4,2.3513545]
[1641744111355,0.00397897,3097.8,3097.5,2.53989043]
[1641744111553,0.00341055,3097.7,3097.5,2.83989043]
[1641744111753,0.00341055,3097.7,3097.5,3.64712923]
[1641744111954,0.464,3099.2,3097.6,35.41723]
[1641744112153,0.464,3099.2,3097.8,18.91]
[1641744112354,0.01136847,3099.1,3097.9,21.2613545]
[1641744112853,1.61524794,3099.3,3098.9,1.23630839]
[1641744112854,0.01080005,3099.0,3098.9,1.23630839]
[1641744113128,0.0119369,3099.2,3098.9,1.23630839]
[1641744113334,1.61524794,3099.3,3098.9,1.23630839]
[1641744113335,0.01080005,3099.0,3098.9,1.23630839]
[1641744113530,1.61524794,3099.3,3098.9,3.69750718]
[1641744113531,0.0119369,3099.2,3098.9,3.69750718]
[1641744113728,0.01080005,3099.0,3098.9,23.20750718]
[1641744113928,0.0119369,3099.2,3098.9,4.29750718]
[1641744114129,0.01080005,3099.0,3098.9,4.29750718]
[1641744114330,1.35688536,3099.6,3098.9,3.69750718]
[1641744114532,0.01080005,3099.0,3098.9,9.84750718]
[1641744114729,20.81910694,3100.7,3098.9,9.84750718]
[1641744114730,0.01364217,3099.5,3098.9,3.69750718]
[1641744114930,0.01080005,3099.0,3098.9,3.69750718]
[1641744115131,0.01307374,3099.4,3098.9,3.69750718]
[1641744115331,1.0,3100.6,3098.9,3.69750718]
[1641744115332,0.01080005,3099.0,3098.9,3.69750718]
[1641744115531,0.01250532,3099.3,3098.9,3.69848861]
[1641744115732,1.40780238,3099.6,3098.9,3.69848861]
[1641744115733,0.01080005,3099.0,3098.9,3.69848861]
[1641744115934,0.0119369,3099.2,3098.9,3.69848861]
[1641744116131,0.01080005,3099.0,3098.9,3.69848861]
[1641744116332,0.01364217,3099.5,3098.9,3.69848861]
[1641744116531,0.01080005,3099.0,3098.9,1.23630839]
[1641744116732,0.01307374,3099.4,3098.9,1.23630839]
[1641744116957,0.2,3099.6,3099.0,2.18232433]
[1641744117157,0.2,3099.6,3099.0,2.18643789]
[1641744117352,0.2,3099.6,3098.6,2.65224615]
[1641744117353,0.01364217,3099.5,3098.7,2.60923227]
[1641744117752,0.01307374,3099.4,3098.9,0.00098143]
[1641744118153,0.2,3099.6,3098.9,0.00098143]
[1641744118154,0.01250532,3099.3,3098.9,0.00098143]
[1641744118354,0.01250532,3099.3,3099.2,1.42245787]
[1641744118558,0.2,3099.6,3099.2,1.42245787]
[1641744118753,0.2,3099.6,3098.7,2.60923227]
[1641744118954,0.01364217,3099.5,3098.7,2.90923227]
[1641744119355,0.01307374,3099.4,3098.7,2.90923227]
[1641744119758,1.1913939,3099.2,3098.8,1.10506942]
[1641744120156,0.01136847,3099.1,3098.5,2.3302237]
[1641744120359,0.01136847,3099.1,3098.4,0.13819997]
[1641744120613,0.01080005,3099.0,3098.4,0.13819997]
[1641744121111,0.2,3099.6,3098.4,1.49829462]
[1641744121112,1.35857983,3098.7,3098.4,1.49829462]
[1641744121512,0.00852636,3098.6,3098.4,1.49829462]
[1641744121911,1.35857983,3098.7,3098.4,1.49829462]
[1641744121912,0.00795793,3098.5,3098.4,1.49829462]
[1641744122110,0.00795793,3098.5,3098.4,0.13819997]
[1641744122511,0.00795793,3098.5,3098.4,6.43819997]
[1641744122711,18.56180003,3098.4,3098.1,0.08065]
[1641744123013,0.00682109,3098.3,3098.1,0.08065]
[1641744123211,0.00682109,3098.3,3098.2,8.75057063]
[1641744123411,18.56180003,3098.4,3098.2,11.21165903]
[1641744123614,1.62635462,3100.0,3098.2,11.21165903]
[1641744123615,0.01202462,3100.0,3098.4,18.716]
[1641744123814,1.93824744,3100.3,3099.2,0.01207189]
[1641744124020,1.93824744,3100.3,3099.2,1.01417189]
[1641744124021,0.01477901,3099.7,3099.2,1.01417189]
[1641744124476,1.61462202,3100.5,3099.4,2.53102308]
[1641744124477,0.01421059,3099.6,3099.4,2.53102308]
[1641744124676,0.01421059,3099.6,3099.5,2.31135495]
[1641744124875,1.37239905,3100.0,3099.4,2.53102308]
[1641744124876,0.01364217,3099.5,3099.4,2.53102308]
[1641744125076,0.01421059,3099.6,3099.4,2.53102308]
[1641744125276,0.01364217,3099.5,3099.4,2.53102308]
[1641744127280,0.01364217,3099.5,3099.4,18.83102308]
[1641744127477,0.2,3099.7,3099.5,8.05]
[1641744127677,0.195702,3099.7,3099.6,13.9]
[1641744127878,0.195702,3099.7,3099.6,14.2]
[1641744128105,3.3089,3101.6,3100.7,1.21042969]
[1641744128309,0.47662175,3101.9,3100.8,2.20349794]
[1641744128608,1.28303182,3101.8,3100.8,2.20349794]
[1641744128808,0.08027422,3101.8,3100.8,2.20349794]
[1641744129004,1.44827251,3101.7,3100.8,2.20349794]
[1641744129208,1.44827251,3101.7,3100.7,1.21042969]
[1641744129504,1.61439039,3100.9,3100.0,1.1368]
[1641744129704,1.61439039,3100.9,3099.8,2.2248673]
[1641744129906,0.0073895,3100.8,3099.7,0.195702]
[1641744130105,1.23097087,3100.6,3100.3,1.52291163]
[1641744130307,0.00682108,3100.7,3100.5,1.18808396]
[1641744130506,1.61439039,3100.9,3100.5,1.18808396]
[1641744130907,0.0073895,3100.8,3100.5,1.18808396]
[1641744131311,0.0073895,3100.8,3100.3,1.52291163]
[1641744131312,0.00682108,3100.7,3100.3,1.52291163]
[1641744131708,0.00625266,3100.6,3100.3,1.52291163]
[1641744132163,0.00568423,3100.5,3100.3,1.52291163]
[1641744132358,0.00568423,3100.5,3100.3,2.83508534]
[1641744132556,1.30876043,3101.1,3100.3,2.83508534]
[1641744132758,1.22928081,3100.6,3100.0,1.1324]
[1641744132958,0.81532635,3101.0,3099.7,2.57949744]
[1641744133158,0.81532635,3101.0,3099.7,2.88565138]
[1641744133363,0.00795793,3100.9,3099.7,2.88565138]
[1641744133559,0.00795793,3100.9,3099.7,3.18565138]
[1641744133759,0.0073895,3100.8,3099.7,2.88565138]
[1641744134062,0.00682108,3100.7,3100.0,1.10372139]
[1641744134459,1.61376,3101.3,3099.7,0.195702]
[1641744134460,0.00625266,3100.6,3099.7,0.195702]
[1641744134660,3.22835,3100.3,3099.7,0.195702]
[1641744134859,0.464,3100.2,3099.7,0.195702]
[1641744135058,0.8071,3100.1,3099.7,0.195702]
[1641744135260,0.80712,3099.9,3099.7,0.195702]
[1641744135464,1.31698028,3099.8,3099.7,0.195702]
[1641744135709,0.00170527,3099.8,3099.7,0.195702]
[1641744136408,0.00170527,3099.8,3099.7,5.895702]
[1641744136614,0.00170527,3099.8,3099.7,8.44456802]
[1641744139116,0.00170527,3099.8,3099.7,8.74456802]
[1641744139764,0.00170527,3099.8,3099.7,6.195702]
[1641744140864,0.00170527,3099.8,3099.7,0.195702]
[1641744143123,0.00170527,3099.8,3099.7,2e-06]
[1641744143416,0.00170527,3099.8,3098.6,6.11]
[1641744143417,1.6146007,3099.3,3098.6,6.11]
[1641744143616,1.61464,3099.0,3098.6,6.11]
[1641744143916,1.61464,3099.0,3098.7,0.00454739]
[1641744144115,2.07864,3099.0,3098.7,0.00454739]
[1641744144318,1.2311798,3098.9,3098.7,0.00454739]
[1641744144915,2.0385498,3098.9,3098.7,0.00454739]
[1641744145115,15.164,3098.8,3098.7,0.00454739]
[1641744146420,0.464,3098.8,3098.5,0.00568424]
[1641744146620,2.4223197,3098.7,3098.5,0.00568424]
[1641744146871,10.314,3098.6,3098.5,0.00568424]
[1641744147474,0.464,3098.6,3098.5,0.00568424]
[1641744148070,0.80738,3099.0,3098.5,1.31755572]
[1641744148370,0.27639994,3099.2,3098.6,0.00511581]
[1641744148371,0.00626672,3099.2,3098.6,0.00511581]
[1641744149370,0.00626672,3099.2,3098.5,1.10107742]
[1641744149569,0.00626672,3099.2,3098.6,0.00511581]
[1641744149970,0.81350672,3099.2,3098.6,0.00511581]
[1641744150372,0.80724,3099.2,3098.6,0.00511581]
[1641744150812,1.34652915,3098.8,3098.6,0.00511581]
[1641744151413,14.914,3098.7,3098.5,0.00568424]
[1641744151814,8.95,3098.6,3098.4,15.63502724]
[1641744152016,8.95,3098.6,3098.4,2.33252724]
[1641744152017,9.95,3098.6,3098.4,2.33252724]
[1641744152214,15.84753702,3098.5,3098.4,2.33252724]
[1641744152414,17.11908702,3098.5,3098.4,2.33252724]
[1641744152614,18.11908702,3098.5,3098.4,2.33252724]
[1641744152812,18.41908702,3098.5,3098.4,2.33252724]
[1641744153414,2.33252724,3098.4,3096.9,3.6829]
[1641744153615,0.80771,3097.7,3096.8,1.2119131]
[1641744153814,0.80771,3097.7,3097.0,0.00852635]
[1641744154462,0.80771,3097.7,3097.0,1.74113308]
[1641744154463,1.45528899,3097.6,3097.0,1.74113308]
[1641744154864,0.8077,3097.4,3097.1,0.00795793]
[1641744155265,1.45528899,3097.6,3097.1,0.00795793]
[1641744155466,1.45528899,3097.6,3097.1,1.48096157]
[1641744155666,1.45528899,3097.6,3097.1,0.00795793]
[1641744155866,1.45528899,3097.6,3097.2,0.0073895]
[1641744156065,1.45528899,3097.6,3096.9,0.00909477]
[1641744156566,1.45528899,3097.6,3097.3,1.22139056]
[1641744156865,1.45528899,3097.6,3097.4,0.00625266]
[1641744158412,1.45528899,3097.6,3097.4,6.11625266]
[1641744158612,1.45528899,3097.6,3097.4,6.11]
[1641744158812,1.45528899,3097.6,3097.5,0.00568423]
[1641744159413,0.80752,3098.2,3097.5,0.00568423]
[1641744159613,2.33252724,3098.4,3097.5,0.00568423]
[1641744160415,2.33252724,3098.4,3098.2,1.19330014]
[1641744160814,2.33252724,3098.4,3098.3,0.00113684]
[1641744161218,2.33252724,3098.4,3097.4,0.00625266]
[1641744161414,2.33252724,3098.4,3097.4,0.00098191]
[1641744161622,2.33252724,3098.4,3097.8,1.6144354]
[1641744161866,1.2027576,3099.2,3098.0,0.01202048]
[1641744162067,2.88194245,3099.5,3098.1,0.388]
[1641744162267,0.00341054,3099.1,3098.7,0.01273435]
[1641744162468,2.88194245,3099.5,3098.7,0.01273435]
[1641744162469,0.00511581,3099.4,3098.7,3.29768355]
[1641744162659,2.88194245,3099.5,3099.3,1.28761918]
[1641744162862,1.2027576,3099.5,3099.3,1.28761918]
[1641744163059,0.00511581,3099.4,3099.3,1.28761918]
[1641744163468,0.00795793,3099.9,3099.3,1.28761918]
[1641744163761,0.00738951,3099.8,3099.3,1.28761918]
[1641744163963,1.21265124,3099.8,3099.4,2.35747306]
[1641744164162,0.00682108,3099.7,3099.4,2.35747306]
[1641744164561,0.00625266,3099.6,3099.3,1.28761918]
[1641744164964,0.00568424,3099.5,3099.3,1.28761918]
[1641744165361,0.00682108,3099.7,3099.3,1.28761918]
[1641744165808,0.00625266,3099.6,3099.3,1.28761918]
[1641744166305,0.00568424,3099.5,3099.4,2.25617158]
[1641744166505,0.00568424,3099.5,3099.3,1.28761918]
[1641744166706,0.00682108,3099.5,3099.3,1.28761918]
[1641744169469,0.00682108,3099.5,3099.4,2.22789502]
[1641744169862,0.00568424,3099.5,3099.3,1.28761918]
[1641744170263,0.00568424,3099.5,3099.2,3.7664]
[1641744170463,0.00568424,3099.5,3098.6,2.85502944]
[1641744170765,0.00568424,3099.5,3098.5,3.921]
[1641744170766,0.8073,3099.3,3098.5,3.921]
[1641744170963,0.8073,3099.3,3098.2,3.85310527]
[1641744170964,0.50568424,3099.5,3098.2,0.00170527]
[1641744171166,0.00397897,3099.2,3098.2,0.00170527]
[1641744171364,0.00397897,3099.2,3098.3,1.23529636]
[1641744171365,1.23183212,3098.6,3098.3,1.23529636]
[1641744171563,0.80736,3098.7,3098.3,1.23529636]
[1641744171763,0.00341054,3099.1,3098.3,1.23529636]
[1641744171963,0.00341054,3099.1,3098.3,3.45984836]
[1641744172163,0.00284212,3099.0,3098.3,3.45984836]
[1641744172567,0.0022737,3098.9,3098.2,1.05795774]
[1641744172967,1.40028322,3099.1,3098.3,0.00113684]
[1641744172968,0.00170527,3098.8,3098.3,0.00113684]
[1641744173410,0.00113685,3098.7,3098.3,0.00113684]
[1641744173611,0.00113685,3098.7,3098.2,0.03252648]
[1641744173811,1.29491678,3099.0,3098.3,1.25841154]
[1641744173812,1.2977589,3099.0,3098.3,1.25841154]
[1641744174014,0.00170527,3098.6,3098.3,1.25841154]
[1641744174215,0.00341054,3098.9,3098.3,1.25841154]
[1641744174412,0.00113684,3098.5,3098.3,1.25841154]
[1641744174611,0.00284211,3098.8,3098.3,1.25841154]
[1641744174812,0.00341054,3098.9,3098.3,1.25841154]
[1641744175012,1.29491678,3099.0,3098.3,1.25841154]
[1641744175013,0.00227369,3098.7,3098.3,1.25841154]
[1641744175214,0.00284211,3098.8,3098.3,1.25841154]
[1641744175412,0.00170527,3098.6,3098.3,1.25841154]
[1641744175613,0.00227369,3098.7,3098.3,1.25841154]
[1641744175816,0.00113684,3098.5,3098.3,1.25841154]
[1641744176017,0.00170527,3098.6,3098.3,1.25841154]
[1641744176213,0.00341054,3098.9,3098.3,1.25841154]
[1641744176412,0.00113684,3098.5,3098.3,1.25841154]
[1641744176614,0.00284211,3098.8,3098.3,1.25939316]
[1641744176857,1.29491678,3099.0,3098.3,1.25939316]
[1641744176858,0.00341054,3098.9,3098.3,1.25939316]
[1641744177058,0.00227369,3098.7,3098.3,1.25939316]
[1641744177259,0.00284211,3098.8,3098.3,1.25939316]
[1641744177458,0.00170527,3098.6,3098.3,1.25939316]
[1641744177662,0.00227369,3098.7,3098.3,1.25939316]
[1641744177862,0.00113684,3098.5,3098.4,10.424317]
[1641744178059,0.00170527,3098.6,3098.4,10.424317]
[1641744178267,1.29491678,3099.0,3098.5,13.79977791]
[1641744178460,1.29491678,3099.0,3098.6,18.92210264]
[1641744178660,0.00341054,3098.9,3098.8,33.56]
[1641744178861,0.00341054,3098.9,3098.8,34.65648909]
[1641744179160,0.00568423,3099.3,3099.0,0.80692]
[1641744179359,0.00568423,3099.3,3099.1,2.31367985]
[1641744179559,0.00626672,3099.6,3099.1,21.22367985]
[1641744179560,0.00511581,3099.2,3099.1,21.22367985]
[1641744179759,0.00511581,3099.2,3099.1,2.31367985]
[1641744180364,0.00511581,3099.2,3099.1,2.4205706]
[1641744180632,0.00511581,3099.2,3098.7,0.08065]
[1641744180815,0.00511581,3099.2,3098.5,4.2996]
[1641744181011,0.00454738,3099.1,3098.5,4.2996]
[1641744181413,0.00397896,3099.0,3098.5,4.2996]
[1641744181614,0.00397896,3099.0,3098.7,1.05861081]
[1641744181814,0.80711,3099.6,3098.7,1.05861081]
[1641744182012,0.80711,3099.6,3098.5,3.9996]
[1641744182013,1.12766303,3098.8,3098.5,3.9996]
[1641744182414,0.00227369,3098.7,3098.4,0.2593]
[1641744182817,0.00170527,3098.6,3098.4,0.2593]